fUSD/lending_fUSD_20240929
["ID","MTS","AMOUNT","RATE_DAILY","PERIOD"]
[339470116,1727622645881,-311.62020033,0.00011,2]
[339470136,1727622698054,451.11,8.773e-05,2]
[339470139,1727622883353,255.0,0.00021,60]
[339470140,1727622898994,255.0,0.00015,30]
[339470143,1727623069281,-150.0,9.901e-05,2]
[339470145,1727623267535,250.0,9.877e-05,2]
[339470147,1727623273290,349.96,9.892e-05,2]
[339470151,1727623348741,1000.0,9.894e-05,2]
[339470153,1727623388294,446.36,8.219e-05,2]
[339470155,1727623522634,250.0,9.823e-05,2]
[339470156,1727623574133,250.3,9.837e-05,2]
[339470157,1727623626324,2066.91,0.00021,60]
[339470158,1727623790932,4660.98,9.845e-05,2]
[339470162,1727623822265,155.0,0.00021,60]
[339470171,1727623831961,-16.68,9.901e-05,2]
[339470172,1727623831971,-362.09,9.908e-05,2]
[339470173,1727623831980,-194.03,9.926e-05,2]
[339470174,1727623831990,-242.19724662,9.954e-05,2]
[339470175,1727623832002,-57.80275338,9.954e-05,2]
[339470176,1727623832011,-2435.06512127,9.955e-05,2]
[339470177,1727623832075,-960.92161359,9.955e-05,2]
[339470178,1727623832091,-1539.6573271,9.955e-05,2]
[339470179,1727623832211,-3600.0,9.955e-05,2]
[339470180,1727623832222,-804.35470988,9.955e-05,2]
[339470258,1727623838054,-7775.54787387,9.955e-05,2]
[339470259,1727623838066,-1595.48310882,9.955e-05,2]
[339470260,1727623838077,-14979.50612864,9.955e-05,2]
[339470261,1727623838179,-2491.41411683,9.955e-05,2]
[339470262,1727623838189,-1050.0,0.0001,2]
[339470263,1727623838199,-222.0,0.00010067,2]
[339470264,1727623838209,-255.0,0.00010088,2]
[339470265,1727623838219,-3244.89699326,0.00010431,2]
[339470266,1727623838228,-287.81,0.00010431,2]
[339470267,1727623838237,-499.99,0.00010431,2]
[339470268,1727623838246,-150.0,0.00010469,2]
[339470269,1727623838256,-446.36,0.0001047,2]
[339470270,1727623838265,-4942.09,0.0001047,2]
[339470271,1727623838274,-471.92,0.0001047,2]
[339470272,1727623838284,-830.8,0.0001047,2]
[339470273,1727623838293,-358.13,0.000105,2]
[339470274,1727623838303,-302.4,0.00010624,2]
[339470275,1727623838313,-187.01,0.00010634,2]
[339470276,1727623838322,-187.01,0.00010652,2]
[339470277,1727623838331,-999.99,0.00010652,2]
[339470278,1727623838341,-187.01,0.0001067,2]
[339470279,1727623838351,-187.01,0.00010688,2]
[339470280,1727623838360,-302.4,0.0001078,2]
[339470281,1727623838370,-302.4,0.0001078,2]
[339470282,1727623838379,-302.4,0.0001078,2]
[339470283,1727623838388,-302.4,0.0001078,2]
[339470284,1727623838397,-302.4,0.0001078,2]
[339470285,1727623838408,-302.4,0.0001078,2]
[339470286,1727623838418,-3356.9784,0.0001079,2]
[339470287,1727623838427,-100000.0,0.0001079,2]
[339470289,1727623838438,-165.00203035,0.00010899,2]
[339470290,1727623838447,-165.00203035,0.00010899,2]
[339470292,1727623838457,-165.00203035,0.00010899,2]
[339470293,1727623838466,-165.00203035,0.00010899,2]
[339470294,1727623838475,-165.00203035,0.00010899,2]
[339470295,1727623838485,-165.00203035,0.00010899,2]
[339470296,1727623838494,-165.00203035,0.00010899,2]
[339470297,1727623838504,-165.00203035,0.00010899,2]
[339470298,1727623838514,-173.18873129,0.000109,2]
[339470299,1727623838524,-175.18324583,0.000109,2]
[339470300,1727623838534,-1000.0,0.000109,2]
[339470301,1727623838544,-165.00203035,0.000109,2]
[339470302,1727623838553,-307.58054622,0.000109,2]
[339470303,1727623838563,-420.0,0.00010949,2]
[339470304,1727623838572,-500.0,0.00010958,2]
[339470305,1727623838582,-200.0,0.00010959,2]
[339470306,1727623838591,-150.64,0.00010959,2]
[339470307,1727623838601,-5152.5883,0.00010959,2]
[339470308,1727623838610,-552.04,0.00010959,2]
[339470309,1727623838619,-159.26,0.00010959,2]
[339470310,1727623838628,-302.4,0.00010963,2]
[339470311,1727623838638,-500.0,0.00010973,2]
[339470312,1727623838647,-500.0,0.00010973,2]
[339470313,1727623838656,-500.0,0.00010973,2]
[339470314,1727623838666,-172.567,0.00010974,2]
[339470315,1727623838675,-810.0,0.00010974,2]
[339470316,1727623838685,-1031.961,0.00010974,2]
[339470317,1727623838695,-683.163,0.00010974,2]
[339470318,1727623838704,-1904.0,0.00010974,2]
[339470319,1727623838713,-554.0,0.00010974,2]
[339470320,1727623838723,-1957.996,0.00010974,2]
[339470321,1727623838732,-3350.0,0.00010974,2]
[339470322,1727623838742,-807.0,0.00010974,2]
[339470323,1727623838751,-1081.0,0.00010974,2]
[339470324,1727623838760,-625.0,0.00010974,2]
[339470325,1727623838770,-5871.0,0.00010974,2]
[339470326,1727623838779,-1263.0,0.00010974,2]
[339470327,1727623838789,-1296.0,0.00010974,2]
[339470328,1727623838799,-289.851,0.00010974,2]
[339470329,1727623838809,-13499.0,0.00010974,2]
[339470330,1727623838819,-448.0,0.00010974,2]
[339470331,1727623838827,-302.4,0.00010987,2]
[339470332,1727623838837,-302.4,0.00010987,2]
[339470333,1727623838846,-773.74126147,0.0001099,2]
[339470334,1727623838855,-199.66248863,0.0001099,2]
[339470335,1727623838864,-773.74126147,0.0001099,2]
[339470336,1727623838874,-773.74126147,0.0001099,2]
[339470337,1727623838883,-500.0,0.00010996,2]
[339470338,1727623838892,-6294.4208363,0.00010997,2]
[339470339,1727623838902,-36627.2343223,0.00010997,2]
[339470340,1727623838913,-500.0,0.00010998,2]
[339470341,1727623838922,-500.0,0.00010998,2]
[339470342,1727623838931,-500.0,0.00010998,2]
[339470343,1727623838941,-500.0,0.00010998,2]
[339470344,1727623838950,-163.47669391,0.00010998,2]
[339470345,1727623838959,-500.0,0.00010998,2]
[339470346,1727623838969,-500.0,0.00010998,2]
[339470347,1727623838978,-500.0,0.00010998,2]
[339470348,1727623838987,-500.0,0.00010998,2]
[339470349,1727623838996,-456.34665777,0.00010998,2]
[339470350,1727623839005,-500.0,0.00010998,2]
[339470351,1727623839015,-500.0,0.00010998,2]
[339470352,1727623839024,-500.0,0.00010998,2]
[339470353,1727623839033,-500.0,0.00010998,2]
[339470354,1727623839042,-500.0,0.00010998,2]
[339470355,1727623839051,-500.0,0.00010998,2]
[339470356,1727623839061,-1365.83,0.00010999,2]
[339470357,1727623839070,-1365.83,0.00010999,2]
[339470358,1727623839079,-1365.83,0.00010999,2]
[339470359,1727623839089,-1365.83,0.00010999,2]
[339470360,1727623839098,-1365.83,0.00010999,2]
[339470361,1727623839108,-1365.83,0.00010999,2]
[339470362,1727623839117,-1365.83,0.00010999,2]
[339470363,1727623839130,-1365.83,0.00010999,2]
[339470364,1727623839139,-1365.83,0.00010999,2]
[339470365,1727623839148,-1365.83,0.00010999,2]
[339470366,1727623839158,-1365.83,0.00010999,2]
[339470367,1727623839167,-1365.83,0.00010999,2]
[339470368,1727623839177,-1365.83,0.00010999,2]
[339470369,1727623839186,-1365.83,0.00010999,2]
[339470370,1727623839196,-1365.83,0.00010999,2]
[339470371,1727623839206,-1365.83,0.00010999,2]
[339470372,1727623839216,-1365.83,0.00010999,2]
[339470373,1727623839225,-1365.83,0.00010999,2]
[339470374,1727623839234,-1365.83,0.00010999,2]
[339470375,1727623839243,-1365.83,0.00010999,2]
[339470376,1727623839253,-1365.83,0.00010999,2]
[339470377,1727623839262,-1365.83,0.00010999,2]
[339470378,1727623839271,-1365.83,0.00010999,2]
[339470379,1727623839280,-1366.0660578,0.00010999,2]
[339470380,1727623839289,-500.0,0.00010999,2]
[339470381,1727623839298,-1570.47,0.00010999,2]
[339470382,1727623839308,-1570.47,0.00010999,2]
[339470383,1727623839317,-1570.47,0.00010999,2]
[339470384,1727623839326,-1570.47,0.00010999,2]
[339470385,1727623839336,-1570.47,0.00010999,2]
[339470386,1727623839345,-1570.47,0.00010999,2]
[339470387,1727623839354,-1570.47,0.00010999,2]
[339470388,1727623839364,-1570.47,0.00010999,2]
[339470389,1727623839373,-1570.47,0.00010999,2]
[339470390,1727623839383,-1570.47,0.00010999,2]
[339470391,1727623839392,-1570.47,0.00010999,2]
[339470392,1727623839401,-1570.47,0.00010999,2]
[339470393,1727623839412,-1570.47,0.00010999,2]
[339470394,1727623839422,-1570.47,0.00010999,2]
[339470395,1727623839431,-1570.47,0.00010999,2]
[339470396,1727623839440,-1570.47,0.00010999,2]
[339470397,1727623839450,-1570.47,0.00010999,2]
[339470398,1727623839459,-1570.47,0.00010999,2]
[339470399,1727623839468,-1570.47,0.00010999,2]
[339470400,1727623839477,-1570.47,0.00010999,2]
[339470401,1727623839486,-1570.47,0.00010999,2]
[339470402,1727623839495,-1570.47,0.00010999,2]
[339470403,1727623839505,-1570.47,0.00010999,2]
[339470404,1727623839514,-1570.5755779,0.00010999,2]
[339470405,1727623839524,-500.0,0.00010999,2]
[339470406,1727623839533,-500.0,0.00010999,2]
[339470407,1727623839542,-500.0,0.00010999,2]
[339470408,1727623839551,-500.0,0.00010999,2]
[339470409,1727623839561,-500.0,0.00010999,2]
[339470410,1727623839571,-500.0,0.00010999,2]
[339470411,1727623839580,-605.64,0.00010999,2]
[339470412,1727623839589,-500.0,0.00010999,2]
[339470413,1727623839599,-500.0,0.00010999,2]
[339470414,1727623839608,-432.83018464,0.00010999,2]
[339470415,1727623839619,-574.22005625,0.00010999,2]
[339470416,1727623839628,-500.0,0.00010999,2]
[339470417,1727623839638,-500.0,0.00010999,2]
[339470418,1727623839651,-500.0,0.00010999,2]
[339470419,1727623839661,-500.0,0.00010999,2]
[339470420,1727623839670,-500.0,0.00010999,2]
[339470421,1727623839679,-393.59315296,0.00010999,2]
[339470422,1727623839689,-500.0,0.00010999,2]
[339470423,1727623839698,-552.03896135,0.00010999,2]
[339470424,1727623839709,-500.0,0.00010999,2]
[339470425,1727623839718,-500.0,0.00010999,2]
[339470426,1727623839728,-500.0,0.00010999,2]
[339470427,1727623839739,-500.0,0.00010999,2]
[339470428,1727623839749,-500.0,0.00010999,2]
[339470429,1727623839758,-500.0,0.00010999,2]
[339470430,1727623839767,-508.14603821,0.00010999,2]
[339470431,1727623839777,-1893.9,0.00010999,2]
[339470432,1727623839787,-1893.9,0.00010999,2]
[339470433,1727623839798,-1893.9,0.00010999,2]
[339470434,1727623839808,-1893.9,0.00010999,2]
[339470435,1727623839818,-1893.9,0.00010999,2]
[339470436,1727623839827,-1893.9,0.00010999,2]
[339470437,1727623839837,-1893.9,0.00010999,2]
[339470438,1727623839847,-1893.9,0.00010999,2]
[339470439,1727623839857,-1893.9,0.00010999,2]
[339470440,1727623839866,-1893.9,0.00010999,2]
[339470441,1727623839876,-1893.9,0.00010999,2]
[339470442,1727623839885,-1893.9,0.00010999,2]
[339470443,1727623839894,-1893.9,0.00010999,2]
[339470444,1727623839903,-1893.9,0.00010999,2]
[339470445,1727623839914,-1893.9,0.00010999,2]
[339470446,1727623839923,-1893.9,0.00010999,2]
[339470447,1727623839932,-1893.9,0.00010999,2]
[339470449,1727623839942,-1893.9,0.00010999,2]
[339470450,1727623839951,-1893.9,0.00010999,2]
[339470451,1727623839960,-1893.9,0.00010999,2]
[339470452,1727623839970,-1893.9,0.00010999,2]
[339470453,1727623839978,-1893.9,0.00010999,2]
[339470454,1727623839987,-1893.9,0.00010999,2]
[339470455,1727623839996,-1894.04596268,0.00010999,2]
[339470456,1727623840006,-500.0,0.00010999,2]
[339470457,1727623840015,-500.0,0.00010999,2]
[339470458,1727623840025,-500.0,0.00010999,2]
[339470459,1727623840034,-500.0,0.00010999,2]
[339470460,1727623840044,-500.0,0.00010999,2]
[339470461,1727623840053,-184.26329104,0.00010999,2]
[339470462,1727623840063,-500.0,0.00010999,2]
[339470463,1727623840072,-500.0,0.00010999,2]
[339470464,1727623840081,-500.0,0.00010999,2]
[339470465,1727623840091,-500.0,0.00010999,2]
[339470466,1727623840100,-500.0,0.00010999,2]
[339470467,1727623840109,-500.0,0.00010999,2]
[339470468,1727623840118,-500.0,0.00010999,2]
[339470469,1727623840132,-170.00690706,0.00010999,2]
[339470470,1727623840143,-500.0,0.00010999,2]
[339470471,1727623840151,-500.0,0.00010999,2]
[339470472,1727623840161,-500.0,0.00010999,2]
[339470473,1727623840170,-500.0,0.00010999,2]
[339470474,1727623840180,-500.0,0.00010999,2]
[339470475,1727623840189,-500.0,0.00010999,2]
[339470476,1727623840199,-330.04,0.00010999,2]
[339470477,1727623840209,-500.0,0.00010999,2]
[339470478,1727623840218,-500.0,0.00010999,2]
[339470479,1727623840227,-500.0,0.00010999,2]
[339470480,1727623840238,-500.0,0.00010999,2]
[339470481,1727623840249,-500.0,0.00010999,2]
[339470482,1727623840259,-500.0,0.00010999,2]
[339470483,1727623840269,-500.0,0.00010999,2]
[339470484,1727623840279,-500.0,0.00010999,2]
[339470486,1727623840289,-500.0,0.00010999,2]
[339470487,1727623840299,-500.0,0.00010999,2]
[339470488,1727623840308,-500.0,0.00010999,2]
[339470489,1727623840317,-500.0,0.00010999,2]
[339470490,1727623840326,-500.0,0.00010999,2]
[339470491,1727623840335,-500.0,0.00010999,2]
[339470492,1727623840345,-500.0,0.00010999,2]
[339470493,1727623840355,-500.0,0.00010999,2]
[339470494,1727623840364,-500.0,0.00010999,2]
[339470495,1727623840373,-500.0,0.00010999,2]
[339470496,1727623840382,-500.0,0.00010999,2]
[339470497,1727623840391,-196.44724909,0.00010999,2]
[339470499,1727623840400,-500.0,0.00010999,2]
[339470501,1727623840410,-500.0,0.00010999,2]
[339470503,1727623840419,-500.0,0.00010999,2]
[339470505,1727623840428,-500.0,0.00010999,2]
[339470507,1727623840437,-500.0,0.00010999,2]
[339470508,1727623840446,-500.0,0.00010999,2]
[339470510,1727623840455,-500.0,0.00010999,2]
[339470512,1727623840464,-500.0,0.00010999,2]
[339470535,1727623840664,-500.0,0.00010999,2]
[339470537,1727623840674,-500.0,0.00010999,2]
[339470539,1727623840683,-500.0,0.00010999,2]
[339470541,1727623840692,-500.0,0.00010999,2]
[339470543,1727623840701,-500.0,0.00010999,2]
[339470545,1727623840710,-500.0,0.00010999,2]
[339470547,1727623840719,-500.0,0.00010999,2]
[339470549,1727623840728,-500.0,0.00010999,2]
[339470551,1727623840737,-500.0,0.00010999,2]
[339470553,1727623840746,-500.0,0.00010999,2]
[339470555,1727623840757,-500.0,0.00010999,2]
[339470557,1727623840766,-562.76121412,0.00010999,2]
[339470559,1727623840775,-500.0,0.00010999,2]
[339470561,1727623840786,-500.0,0.00010999,2]
[339470563,1727623840795,-500.0,0.00010999,2]
[339470565,1727623840804,-500.0,0.00010999,2]
[339470567,1727623840814,-500.0,0.00010999,2]
[339470569,1727623840822,-500.0,0.00010999,2]
[339470571,1727623840831,-500.0,0.00010999,2]
[339470573,1727623840840,-500.0,0.00010999,2]
[339470575,1727623840850,-500.0,0.00010999,2]
[339470577,1727623840859,-500.0,0.00010999,2]
[339470579,1727623840868,-500.0,0.00010999,2]
[339470581,1727623840878,-500.0,0.00010999,2]
[339470583,1727623840887,-500.0,0.00010999,2]
[339470585,1727623840896,-500.0,0.00010999,2]
[339470587,1727623840906,-500.0,0.00010999,2]
[339470588,1727623840915,-500.0,0.00010999,2]
[339470589,1727623840924,-500.0,0.00010999,2]
[339470590,1727623840933,-500.0,0.00010999,2]
[339470591,1727623840943,-500.0,0.00010999,2]
[339470592,1727623840952,-1000.0,0.00010999,2]
[339470593,1727623840962,-500.0,0.00010999,2]
[339470594,1727623840971,-211.0576413,0.00010999,2]
[339470595,1727623840981,-500.0,0.00010999,2]
[339470596,1727623840990,-500.0,0.00010999,2]
[339470597,1727623840999,-500.0,0.00010999,2]
[339470598,1727623841008,-500.0,0.00010999,2]
[339470599,1727623841017,-500.0,0.00010999,2]
[339470600,1727623841026,-500.0,0.00010999,2]
[339470601,1727623841035,-500.0,0.00010999,2]
[339470602,1727623841045,-500.0,0.00010999,2]
[339470603,1727623841055,-500.0,0.00010999,2]
[339470604,1727623841063,-517.53904703,0.00010999,2]
[339470605,1727623841072,-2000.0,0.00010999,2]
[339470606,1727623841081,-303.62533026,0.00010999,2]
[339470607,1727623841090,-500.0,0.00010999,2]
[339470608,1727623841100,-500.0,0.00010999,2]
[339470609,1727623841109,-500.0,0.00010999,2]
[339470610,1727623841119,-500.0,0.00010999,2]
[339470611,1727623841133,-500.0,0.00010999,2]
[339470612,1727623841143,-226.6070459,0.00010999,2]
[339470613,1727623841152,-500.0,0.00010999,2]
[339470614,1727623841162,-500.0,0.00010999,2]
[339470615,1727623841171,-500.0,0.00010999,2]
[339470616,1727623841180,-500.0,0.00010999,2]
[339470617,1727623841190,-500.0,0.00010999,2]
[339470618,1727623841201,-500.0,0.00010999,2]
[339470619,1727623841210,-500.0,0.00010999,2]
[339470620,1727623841219,-500.0,0.00010999,2]
[339470621,1727623841228,-46617.3218852,0.00010999,2]
[339470622,1727623841237,-500.0,0.00010999,2]
[339470623,1727623841247,-500.0,0.00010999,2]
[339470624,1727623841257,-500.0,0.00010999,2]
[339470625,1727623841268,-500.0,0.00010999,2]
[339470626,1727623841277,-500.0,0.00010999,2]
[339470627,1727623841286,-500.0,0.00010999,2]
[339470628,1727623841297,-500.0,0.00010999,2]
[339470629,1727623841307,-500.0,0.00010999,2]
[339470630,1727623841316,-500.0,0.00010999,2]
[339470631,1727623841325,-500.0,0.00010999,2]
[339470632,1727623841334,-500.0,0.00010999,2]
[339470633,1727623841343,-500.0,0.00010999,2]
[339470634,1727623841352,-500.0,0.00010999,2]
[339470635,1727623841362,-500.0,0.00010999,2]
[339470636,1727623841373,-500.0,0.00010999,2]
[339470637,1727623841383,-500.0,0.00010999,2]
[339470638,1727623841393,-500.0,0.00010999,2]
[339470639,1727623841403,-500.43121897,0.00010999,2]
[339470640,1727623841413,-500.0,0.00010999,2]
[339470641,1727623841423,-500.0,0.00010999,2]
[339470642,1727623841432,-500.0,0.00010999,2]
[339470643,1727623841442,-500.0,0.00010999,2]
[339470644,1727623841451,-500.0,0.00010999,2]
[339470645,1727623841461,-500.0,0.00010999,2]
[339470646,1727623841470,-500.0,0.00010999,2]
[339470647,1727623841480,-500.0,0.00010999,2]
[339470648,1727623841489,-500.0,0.00010999,2]
[339470649,1727623841498,-500.0,0.00010999,2]
[339470650,1727623841507,-500.0,0.00010999,2]
[339470651,1727623841516,-500.0,0.00010999,2]
[339470652,1727623841526,-500.0,0.00010999,2]
[339470653,1727623841536,-500.0,0.00010999,2]
[339470654,1727623841546,-171.08373057,0.00010999,2]
[339470655,1727623841555,-160195.61698997,0.00011,2]
[339470656,1727623841573,-4065.73545686,0.00011,2]
[339470657,1727623841583,-190.0,0.00011,2]
[339470658,1727623841593,-1214172.76701537,0.00011,2]
[339470659,1727623841607,-630.65245785,0.00011,2]
[339470660,1727623841618,-564.662132,0.00011,2]
[339470661,1727623841629,-565.02912286,0.00011,2]
[339470662,1727623841641,-4279.73361318,0.00011,2]
[339470663,1727623841655,-502.0,0.00011,2]
[339470664,1727623841667,-8034.35895108,0.00011,2]
[339470665,1727623841680,-329.5347003,0.00011,2]
[339470666,1727623841767,-298.70921316,0.00011,2]
[339470667,1727623841779,-1031.85833444,0.00011,2]
[339470668,1727623841791,-7986350.67966106,0.00011,2]
[339470669,1727623841804,-110524.25498921,0.00011,2]
[339470670,1727623841815,-39982.21591552,0.00011,2]
[339470671,1727623841826,-119614.76461552,0.00011,2]
[339470672,1727623841837,-21099.996,0.00011,2]
[339470673,1727623841849,-690.65177154,0.00011,2]
[339470674,1727623841873,-500.0,0.00010999,2]
[339470675,1727623841882,-2460.45,0.00011,2]
[339470676,1727623841894,-6052.1147381,0.00011,2]
[339470677,1727623841910,-714.86795407,0.00011,2]
[339470678,1727623841922,-987.115152,0.00011,2]
[339470679,1727623841935,-6249.04346498,0.00011,2]
[339470688,1727623843102,-1147.0,0.00010974,2]
[339470689,1727623843112,-179.1230304,0.00010999,2]
[339470690,1727623843230,-320.8769696,0.00010999,2]
[339470691,1727623843239,-500.0,0.00010999,2]
[339470692,1727623843248,-500.0,0.00010999,2]
[339470693,1727623843257,-500.0,0.00010999,2]
[339470694,1727623843267,-500.0,0.00010999,2]
[339470695,1727623843276,-500.0,0.00010999,2]
[339470696,1727623843285,-500.0,0.00010999,2]
[339470697,1727623843294,-1839128.58175047,0.00011,2]
[339470705,1727623844149,-255.18949841,0.00010999,2]
[339470706,1727623844159,-243269.79142734,0.00011,2]
[339470707,1727623844172,-5743.67390475,0.00011,2]
[339470708,1727623844183,-5525.75483118,0.00011,2]
[339470710,1727623846114,-5461.3593,0.00010874,2]
[339470711,1727623846127,-124212.6407,0.00011,2]
[339470712,1727623846175,-6584.8,0.00011,2]
[339470713,1727623846188,-510.32078784,0.00011,2]
[339470714,1727623846202,-63296.96101664,0.00011,2]
[339470715,1727623846215,-331.90124995,0.00011,2]
[339470716,1727623846279,-609.67367557,0.00011,2]
[339470717,1727623846293,-308.52858885,0.00011,2]
[339470726,1727624025079,425.35,8.219e-05,2]
[339470727,1727624078383,150.0,9.9e-05,2]
[339470738,1727624590717,404.08,8.219e-05,2]
[339470741,1727624642831,2000.0,0.00021,60]
[339470742,1727624665236,2481.82,0.00021,60]
[339470745,1727624832120,155.22,9.875e-05,2]
[339470758,1727625000330,1500.0,0.00021,60]
[339470769,1727625032155,-500.0,9.913e-05,2]
[339470770,1727625032165,-6022.77,9.947e-05,2]
[339470771,1727625032177,-250.0,9.966e-05,2]
[339470772,1727625032187,-670.78,9.974e-05,2]
[339470773,1727625032198,-1050.0,0.0001,2]
[339470774,1727625032208,-156.06,0.00010036,2]
[339470775,1727625032219,-1000.0,0.00010097,2]
[339470776,1727625032228,-19.89989184,0.00010432,2]
[339470777,1727625032240,-6920.11664963,0.00010432,2]
[339470778,1727625032249,-999.99,0.00010474,2]
[339470779,1727625032259,-404.08,0.00010474,2]
[339470780,1727625032268,-178.34,0.0001048,2]
[339470781,1727625032278,-150.99,0.0001048,2]
[339470782,1727625032289,-574.14,0.0001048,2]
[339470783,1727625032299,-5285.71,0.0001048,2]
[339470784,1727625032308,-499.99,0.00010555,2]
[339470785,1727625032318,-1000.0,0.000107,2]
[339470786,1727625032328,-2183.253,0.00010774,2]
[339470787,1727625032337,-7323.6019,0.00010774,2]
[339470788,1727625032348,-279.65822897,0.00010774,2]
[339470789,1727625032366,-409.62197103,0.00010774,2]
[339470790,1727625032376,-575.21,0.000108,2]
[339470791,1727625032386,-150.0,0.00010872,2]
[339470792,1727625032395,-6642.06751464,0.00010874,2]
[339470793,1727625032406,-530.91922003,0.00010874,2]
[339470794,1727625032418,-845.87545876,0.00010874,2]
[339470795,1727625032430,-1028.79,0.00010874,2]
[339470796,1727625032441,-404.69798954,0.00010874,2]
[339470797,1727625032452,-6246.33253183,0.00010874,2]
[339470813,1727625032669,-3186.53480063,0.00010874,2]
[339470815,1727625032681,-4983.17752364,0.00010874,2]
[339470817,1727625032693,-714.46336982,0.00010874,2]
[339470820,1727625032714,-12964.73209111,0.00010874,2]
[339470822,1727625032725,-2751.0031,0.00010874,2]
[339470824,1727625032734,-75268.64664618,0.00010874,2]
[339470826,1727625032746,-555.249,0.00010874,2]
[339470829,1727625032766,-4507.06363913,0.00010874,2]
[339470831,1727625032777,-1249.78872132,0.00010874,2]
[339470834,1727625032788,-320.39013335,0.00010874,2]
[339470836,1727625032799,-1674.56555788,0.00010874,2]
[339470838,1727625032810,-393.3952172,0.00010874,2]
[339470840,1727625032821,-752.17210597,0.00010874,2]
[339470876,1727625038504,-3100.0,0.00010874,2]
[339470877,1727625038516,-1491.86667203,0.00010874,2]
[339470878,1727625038561,-267.20354581,0.00010874,2]
[339470879,1727625038620,-155419.65876113,0.00010874,2]
[339470880,1727625038630,-500.0,0.00010897,2]
[339470881,1727625038640,-7500.0,0.00010899,2]
[339470882,1727625038651,-7245.5241919,0.00010899,2]
[339470883,1727625038660,-7245.5241919,0.00010899,2]
[339470884,1727625038670,-7245.5241919,0.00010899,2]
[339470885,1727625038679,-7245.5241919,0.00010899,2]
[339470886,1727625038689,-7245.5241919,0.00010899,2]
[339470887,1727625038700,-7245.5241919,0.00010899,2]
[339470888,1727625038710,-518.880294,0.000109,2]
[339470889,1727625038719,-3918.16145594,0.000109,2]
[339470890,1727625038730,-150.35374544,0.000109,2]
[339470891,1727625038741,-7245.5241919,0.000109,2]
[339470892,1727625038751,-168.02374188,0.000109,2]
[339470893,1727625038761,-168.02374185,0.000109,2]
[339470894,1727625038770,-168.02374185,0.000109,2]
[339470895,1727625038779,-168.02374185,0.000109,2]
[339470896,1727625038789,-168.02374185,0.000109,2]
[339470897,1727625038798,-168.02374185,0.000109,2]
[339470898,1727625038808,-1000.0,0.00010945,2]
[339470899,1727625038817,-1000.0,0.00010945,2]
[339470900,1727625038827,-1000.0,0.00010945,2]
[339470901,1727625038837,-1000.0,0.00010945,2]
[339470902,1727625038846,-1000.0,0.00010945,2]
[339470903,1727625038856,-1000.0,0.00010945,2]
[339470904,1727625038866,-1000.0,0.00010945,2]
[339470905,1727625038877,-1000.0,0.00010945,2]
[339470906,1727625038889,-1000.0,0.00010945,2]
[339470907,1727625038899,-585.4671,0.00010945,2]
[339470908,1727625038908,-500.0,0.00010958,2]
[339470909,1727625038917,-391.85000001,0.00010958,2]
[339470910,1727625038928,-500.0,0.00010958,2]
[339470911,1727625038938,-500.0,0.00010958,2]
[339470912,1727625038948,-500.0,0.00010958,2]
[339470913,1727625038957,-500.0,0.00010958,2]
[339470914,1727625038968,-500.0,0.00010958,2]
[339470915,1727625038979,-545.08,0.00010958,2]
[339470916,1727625038990,-500.0,0.00010958,2]
[339470917,1727625038999,-184.6,0.00010958,2]